bitfinex/quotes_SOLUSD_20251216
["timestamp","ask_amount","ask_price","bid_price","bid_amount"]
[1765902149209,0.92,129.4,129.39,5.59188876]
[1765902149808,0.72,129.39,129.37,15.73546713]
[1765902150018,0.72,129.39,129.38,13.31853223]
[1765902150326,0.72,129.39,129.38,21.32446105]
[1765902150513,0.92,129.4,129.38,21.32446105]
[1765902150716,0.92,129.4,129.39,5.58936235]
[1765902150914,0.2,129.4,129.39,13.58749757]
[1765902151110,0.2,129.4,129.39,21.3160701]
[1765902151501,0.2,129.4,129.39,30.12601502]
[1765902152511,0.2,129.4,129.39,5.58936235]
[1765902152826,0.92,129.4,129.39,5.58936235]
[1765902153027,0.92,129.4,129.39,21.3160701]
[1765902153228,0.92,129.4,129.39,5.58936235]
[1765902153429,0.2,129.4,129.39,21.3160701]
[1765902153737,0.91,129.4,129.39,5.58936235]
[1765902153938,0.2,129.4,129.39,13.31793488]
[1765902154228,0.87,129.4,129.39,13.31793488]
[1765902154427,0.87,129.4,129.39,5.58936235]
[1765902155017,0.87,129.4,129.39,5.60524609]
[1765902155536,0.2,129.4,129.39,13.33381862]
[1765902155721,0.2,129.4,129.39,21.33195384]
[1765902156206,0.87,129.4,129.39,21.33195384]
[1765902156405,0.2,129.4,129.39,21.33195384]
[1765902157322,0.2,129.4,129.39,30.14189876]
[1765902157522,0.2,129.4,129.39,22.14376354]
[1765902157729,0.2,129.4,129.39,30.14189876]
[1765902158041,0.2,129.4,129.39,43.39898996]
[1765902159234,0.2,129.4,129.39,37.79374387]
[1765902159934,1e-08,129.4,129.39,37.79374387]
[1765902161630,0.67,129.46,129.43,13.0470912]
[1765902162016,0.67,129.45,129.44,7.99813522]
[1765902162718,0.67,129.47,129.44,7.99813522]
[1765902162919,0.67,129.47,129.45,7.99813522]
[1765902163137,0.67,129.47,129.46,7.99813522]
[1765902163336,0.67,129.47,129.46,15.72252885]
[1765902163636,0.67,129.47,129.43,13.0470912]
[1765902163637,0.67,129.47,129.45,15.72287231]
[1765902163941,0.67,129.47,129.45,15.723055]
[1765902164318,0.67,129.47,129.46,7.99813522]
[1765902164522,0.67,129.47,129.45,15.723055]
[1765902164825,0.67,129.47,129.46,15.72252885]
[1765902165022,0.87,129.48,129.46,15.72252885]
[1765902165221,0.67,129.47,129.45,15.7228669]
[1765902165935,0.87,129.48,129.46,15.72252885]
[1765902166235,0.2,129.48,129.46,15.72252885]
[1765902166440,0.67,129.47,129.46,15.72252885]
[1765902166639,0.67,129.47,129.44,19.31303335]
[1765902166640,0.67,129.47,129.44,7.99813522]
[1765902166938,0.67,129.46,129.42,7.99813522]
[1765902167240,0.67,129.45,129.42,7.99813522]
[1765902167836,0.67,129.45,129.43,7.99813522]
[1765902168135,0.67,129.45,129.41,8.80994492]
[1765902168344,0.67,129.45,129.42,7.99813522]
[1765902169338,0.67,129.44,129.41,7.7271046]
[1765902169537,0.67,129.44,129.41,15.72523982]
[1765902169718,0.67,129.44,129.41,15.72547423]
[1765902170043,0.67,129.44,129.41,7.99813522]
[1765902170347,0.67,129.44,129.41,15.72542258]
[1765902170814,0.67,129.44,129.42,7.99813522]
[1765902171944,0.67,129.43,129.42,7.99813522]
[1765902172244,0.67,129.43,129.38,13.0470912]
[1765902172551,0.67,129.43,129.39,7.72832527]
[1765902172738,0.67,129.43,129.4,7.99813522]
[1765902173124,0.67,129.43,129.39,15.72646049]
[1765902173318,7.72678102,129.42,129.39,7.72832527]
[1765902173658,0.67,129.41,129.39,7.99813522]
[1765902174139,0.67,129.41,129.37,29.23655719]
[1765902174336,0.67,129.41,129.37,28.77469241]
[1765902174538,0.67,129.41,129.36,7.99813522]
[1765902174539,0.67,129.4,129.36,7.99813522]
[1765902174838,0.67,129.39,129.35,7.73047505]
[1765902175014,0.67,129.39,129.34,13.0470912]
[1765902175217,0.67,129.36,129.31,16.19312333]
[1765902175411,21.5070912,129.4,129.25,23.56179635]
[1765902175412,8.66813522,129.34,129.25,23.56179635]
[1765902175619,0.67,129.29,129.25,0.2]
[1765902175832,13.0470912,129.34,129.27,7.99813522]
[1765902175833,0.67,129.33,129.27,7.99813522]
[1765902176022,0.67,129.33,129.25,21.19347519]
[1765902176243,0.67,129.33,129.25,20.98347519]
[1765902176442,0.67,129.32,129.29,7.99813522]
[1765902177355,0.67,129.32,129.28,7.73478344]
[1765902177524,0.67,129.32,129.28,15.73291866]
[1765902178139,7.73280405,129.32,129.27,7.73558659]
[1765902178346,7.73280405,129.32,129.26,7.99813522]
[1765902178347,7.99813522,129.31,129.26,7.99813522]
[1765902178546,7.73280405,129.32,129.25,0.2]
[1765902178547,0.67,129.29,129.25,0.2]
[1765902178847,0.67,129.27,129.25,0.2]
[1765902180424,0.67,129.26,129.25,0.2]
[1765902180831,8.40634535,129.26,129.25,0.2]
[1765902181126,16.86634535,129.26,129.25,0.2]
[1765902181647,24.86448057,129.26,129.25,0.2]
[1765902182146,16.86634535,129.26,129.25,0.2]
[1765902182374,7.73583081,129.27,129.25,0.2]
[1765902182562,0.67,129.26,129.25,0.2]
[1765902182728,7.73746723,129.25,129.19,21.85703612]
[1765902183045,9.15,129.26,129.23,7.99813522]
[1765902183428,0.67,129.25,129.23,7.99813522]
[1765902183624,9.16,129.26,129.21,9.21994492]
[1765902183839,8.48,129.26,129.21,9.21994492]
[1765902184045,9.16,129.26,129.23,7.99813522]
[1765902184421,8.48,129.26,129.24,7.99813522]
[1765902184621,16.89395204,129.3,129.25,8.40813522]
[1765902184844,16.21395204,129.3,129.25,8.14635524]
[1765902185025,16.89395204,129.3,129.27,7.99813522]
[1765902185231,9.16,129.3,129.28,7.99813522]
[1765902185548,9.16,129.3,129.27,7.73571188]
[1765902185756,9.16,129.3,129.28,7.99813522]
[1765902185953,8.48,129.3,129.28,7.99813522]
[1765902186251,0.68,129.32,129.27,7.73571188]
[1765902186423,0.68,129.32,129.28,7.99813522]
[1765902186424,0.68,129.31,129.28,7.99813522]
[1765902186849,0.68,129.31,129.29,7.99813522]
[1765902187060,8.48,129.33,129.29,15.73252503]
[1765902187061,16.21227455,129.33,129.29,15.73252503]
[1765902187228,9.16,129.33,129.3,7.99813522]
[1765902187546,0.68,129.34,129.31,7.99813522]
[1765902188050,8.48,129.35,129.33,7.99813522]
[1765902188356,0.68,129.34,129.3,8.80994492]
[1765902188550,0.68,129.33,129.28,13.0470912]
[1765902188853,0.68,129.31,129.27,7.99813522]
[1765902189022,0.68,129.3,129.27,7.99813522]
[1765902189727,0.68,129.31,129.27,7.73563742]
[1765902189934,0.68,129.31,129.29,7.99813522]
[1765902190949,0.68,129.31,129.27,15.73377264]
[1765902191747,0.68,129.31,129.28,7.99813522]
[1765902192127,0.68,129.31,129.27,7.73563742]
[1765902192326,0.68,129.31,129.28,7.99813522]
[1765902192544,7.73337035,129.31,129.27,15.73377264]
[1765902192861,0.68,129.3,129.27,15.73377264]
[1765902193837,9.16,129.32,129.29,7.99813522]
[1765902194068,0.68,129.34,129.3,7.99813522]
[1765902194265,0.68,129.34,129.31,7.99813522]
[1765902194432,0.68,129.38,129.33,7.99813522]
[1765902194627,0.68,129.37,129.34,7.99813522]
[1765902195028,0.68,129.37,129.31,0.41]
[1765902195029,8.48,129.38,129.32,13.0470912]
[1765902195229,9.16,129.38,129.33,9.21994492]
[1765902195544,0.68,129.37,129.32,13.0470912]
[1765902195751,0.68,129.37,129.33,7.99813522]
[1765902196054,0.68,129.36,129.33,7.99813522]
[1765902196733,0.68,129.36,129.32,20.77925694]
[1765902196934,0.68,129.36,129.33,7.99813522]
[1765902197361,8.41036646,129.36,129.33,7.73203899]
[1765902197544,8.41036646,129.36,129.33,7.99813522]
[1765902197743,7.72996549,129.37,129.33,15.73022575]
[1765902197968,0.68,129.37,129.34,7.99813522]
[1765902198473,8.40894808,129.39,129.35,7.99813522]
[1765902198675,8.40894808,129.39,129.36,7.99813522]
[1765902198676,0.68,129.39,129.36,7.99813522]
[1765902198835,0.68,129.39,129.36,15.72832232]
[1765902199175,0.68,129.38,129.34,13.0470912]
[1765902199334,0.68,129.38,129.35,7.99813522]
[1765902200272,0.68,129.37,129.33,7.99813522]
[1765902200444,0.68,129.37,129.32,7.73249466]
[1765902201057,0.68,129.35,129.33,7.99813522]
[1765902201375,0.68,129.35,129.31,34.53800244]
[1765902201668,0.68,129.35,129.31,26.05800244]
[1765902201859,0.68,129.35,129.32,13.01091124]
[1765902203476,0.68,129.34,129.3,7.73381933]
[1765902203675,21.42204531,129.35,129.31,7.73318983]
[1765902203841,21.42204531,129.35,129.32,7.73262384]
[1765902203842,0.68,129.35,129.32,7.73262384]
[1765902204046,0.68,129.35,129.32,20.74353508]
[1765902204652,0.68,129.35,129.32,7.73262384]
[1765902204990,0.68,129.35,129.32,20.74353508]
[1765902205147,9.16,129.36,129.33,13.01091124]
[1765902205347,9.16,129.36,129.33,20.74289461]
[1765902205563,16.21042303,129.36,129.32,20.74340822]
[1765902205775,0.68,129.35,129.32,20.74340822]
[1765902205958,0.68,129.35,129.31,7.73306516]
[1765902206156,0.68,129.35,129.3,13.01091124]
[1765902206157,0.68,129.34,129.3,13.01091124]
[1765902206449,16.21042303,129.36,129.29,13.0470912]
[1765902206450,0.68,129.32,129.29,13.0470912]
[1765902206658,0.68,129.32,129.28,13.01091124]
[1765902207247,0.68,129.32,129.28,21.82085616]
[1765902207448,0.68,129.32,129.29,20.74536224]
[1765902208370,0.68,129.32,129.29,7.734451]
[1765902208566,0.68,129.32,129.29,20.74536224]
[1765902209859,29.90127611,129.36,129.31,13.42091124]
[1765902210062,9.16,129.36,129.32,13.01091124]
[1765902210857,9.16,129.36,129.31,26.05800244]
[1765902210858,0.68,129.35,129.31,26.05800244]
[1765902211057,0.68,129.33,129.29,7.734451]
[1765902211256,0.68,129.33,129.29,20.74536224]
[1765902211693,0.68,129.32,129.29,20.74536224]
[1765902212085,8.41227765,129.33,129.29,20.74536224]
[1765902212303,0.68,129.32,129.29,20.74536224]
[1765902212505,0.68,129.32,129.29,7.734451]
[1765902212667,0.68,129.32,129.29,20.74536224]
[1765902213297,7.73301697,129.32,129.28,29.26165437]
[1765902213497,13.69091124,129.3,129.24,0.41]
[1765902213711,0.7,129.29,129.25,7.73693963]
[1765902213912,0.7,129.28,129.24,7.73747791]
[1765902214078,0.7,129.28,129.24,20.74838915]
[1765902214392,13.69091124,129.28,129.24,20.74838915]
[1765902214589,0.68,129.28,129.25,7.73693135]
[1765902215318,9.16,129.3,129.25,13.01091124]
[1765902215503,0.68,129.29,129.25,13.01091124]
[1765902215713,0.68,129.28,129.24,20.74845379]
[1765902216188,0.68,129.27,129.23,33.79588772]
[1765902216775,0.68,129.27,129.23,20.74879652]
[1765902217192,0.68,129.26,129.22,42.27651067]
[1765902217488,13.01091124,129.25,129.21,7.73896211]
[1765902217668,0.68,129.24,129.2,7.73988146]
[1765902217872,0.68,129.23,129.19,38.04082915]
[1765902218090,0.68,129.23,129.18,19.96195877]
[1765902218091,13.01091124,129.23,129.18,7.94108232]
[1765902218269,0.68,129.21,129.18,0.2]
[1765902218482,0.68,129.2,129.18,0.2]
[1765902218681,0.68,129.19,129.18,0.2]
[1765902219204,13.69091124,129.19,129.18,0.2]
[1765902219381,20.75144843,129.19,129.15,0.2]
[1765902219579,13.69091124,129.16,129.15,0.2]
[1765902219773,0.68,129.16,129.15,0.2]
[1765902220299,0.68,129.17,129.15,0.2]
[1765902221196,0.68,129.16,129.15,0.2]
[1765902221404,21.46940135,129.16,129.15,0.2]
[1765902222989,0.68,129.16,129.15,0.2]
[1765902223689,21.46940135,129.16,129.15,0.2]
[1765902226708,30.27934627,129.16,129.15,0.2]
[1765902227282,21.46940135,129.16,129.15,0.2]
[1765902227481,21.46940135,129.16,129.12,0.2]
[1765902227482,8.80994492,129.15,129.12,0.2]
[1765902227688,13.72706627,129.13,129.12,0.2]
[1765902228506,21.47120008,129.13,129.12,0.2]
[1765902229314,30.281145,129.13,129.12,0.2]
[1765902230190,17.23407873,129.13,129.12,0.2]
[1765902230385,0.68,129.09,129.03,20.79680183]
[1765902230604,8.42773378,129.07,129.03,20.79680183]
[1765902230812,8.42773378,129.07,129.03,21.40680183]
[1765902231010,8.42773378,129.07,129.03,13.04706627]
[1765902231211,8.42773378,129.07,129.02,34.45478845]
[1765902231390,21.47480005,129.07,129.02,34.45478845]
[1765902231591,21.47480005,129.07,129.03,21.40689308]
[1765902231592,7.74773378,129.07,129.03,21.40689308]
[1765902231792,8.42773378,129.07,129.03,8.35982681]
[1765902231999,8.42773378,129.07,129.03,21.40689308]
[1765902232208,8.42773378,129.07,129.03,20.79689308]
[1765902232408,7.74773378,129.07,129.03,21.40689308]
[1765902232806,7.74773378,129.07,129.03,20.79689308]
[1765902233110,20.04642558,129.09,129.05,13.65706627]
[1765902233111,8.48,129.09,129.05,13.65706627]
[1765902233315,7.74549698,129.11,129.08,13.65706627]
[1765902233508,8.48,129.11,129.08,13.04706627]
[1765902233809,8.48,129.11,129.06,0.61]
[1765902233810,0.68,129.1,129.06,13.04706627]
[1765902234311,0.68,129.09,129.05,13.04706627]
[1765902234499,22.20706627,129.08,129.03,21.4070025]
[1765902234701,0.68,129.07,129.03,21.4070025]
[1765902235214,29.9545467,129.08,129.03,21.4070025]
[1765902235413,0.68,129.07,129.03,21.4070025]
[1765902236009,13.0470912,129.13,129.06,13.04706627]
[1765902236186,29.95179985,129.12,129.07,13.65706627]
[1765902236385,29.27179985,129.12,129.07,0.61]
[1765902236583,0.68,129.11,129.07,13.65706627]
[1765902237316,8.42583653,129.11,129.07,13.65706627]
[1765902238013,13.04706627,129.1,129.05,13.0470912]
[1765902238212,0.68,129.07,129.03,7.74986731]
[1765902238394,0.68,129.07,129.04,13.04706627]
[1765902238593,0.68,129.08,129.04,20.7965723]
[1765902238812,13.72706627,129.08,129.04,20.7965723]
[1765902238992,22.20706627,129.08,129.04,20.7965723]
[1765902239193,8.48,129.08,129.05,13.65706627]
[1765902239995,8.48,129.08,129.06,13.04706627]
[1765902240339,0.68,129.09,129.06,13.04706627]
[1765902240499,0.68,129.09,129.05,13.04706627]
[1765902240690,0.68,129.09,129.04,27.73334359]
[1765902240996,0.68,129.08,129.03,16.22996503]
[1765902241211,7.74773378,129.07,129.03,29.8870313]
[1765902241406,0.68,129.05,129.02,26.09415747]
[1765902241616,0.68,129.05,129.01,20.79816668]
[1765902242139,13.72706627,129.04,129.0,0.2]
[1765902242422,0.68,129.02,129.0,0.2]
[1765902243196,8.48,129.04,129.01,13.65706627]
[1765902243419,8.48,129.04,129.03,13.04706627]
[1765902243722,8.42780466,129.07,129.03,13.04706627]
[1765902243903,16.90780466,129.07,129.03,13.65706627]
[1765902244109,16.22780466,129.07,129.03,13.65706627]
[1765902244305,8.48,129.07,129.03,13.65706627]
[1765902244615,9.2,129.07,129.03,13.65706627]
[1765902245194,16.94792014,129.07,129.04,7.74953502]
[1765902245599,8.48,129.08,129.06,13.04706627]
[1765902245799,8.48,129.08,129.02,21.85703612]
[1765902245800,0.72,129.07,129.03,7.74985211]
[1765902246010,0.72,129.06,129.02,26.09415747]
[1765902246609,0.72,129.06,129.03,13.04706627]
[1765902247409,8.46852524,129.06,129.03,13.04706627]
[1765902247727,7.74798579,129.07,129.03,20.79713458]
[1765902247927,0.72,129.06,129.03,20.79713458]
[1765902249337,8.46796403,129.07,129.03,20.79713458]
[1765902249638,0.72,129.06,129.03,20.7971972]
[1765902250213,0.72,129.07,129.03,20.7971972]
[1765902250415,7.74665402,129.09,129.05,13.65706627]
[1765902250748,7.74665402,129.09,129.03,7.75013093]
[1765902250749,7.74773378,129.07,129.03,7.75013093]
[1765902250917,0.72,129.06,129.03,20.7971972]
[1765902251112,0.72,129.06,129.03,7.75013093]
[1765902251346,0.72,129.06,129.03,13.04706627]
[1765902252142,8.48,129.06,129.02,13.0470912]
[1765902252346,0.72,129.05,129.0,21.7270912]
[1765902252643,0.72,129.02,129.0,0.2]
[1765902252865,16.97071081,129.03,129.0,0.2]
[1765902253143,11.18019371,129.01,129.0,0.2]
[1765902253527,0.72,129.01,129.0,0.2]
[1765902253923,11.18019371,129.01,129.0,0.2]
[1765902254452,0.72,129.02,129.0,0.2]
[1765902254860,8.47105616,129.02,129.0,0.2]
[1765902255021,7.75105616,129.02,129.0,0.2]
[1765902255215,0.72,129.01,129.0,0.2]
[1765902256748,16.97105616,129.02,129.0,0.2]
[1765902257221,0.72,129.01,129.0,0.2]
[1765902257932,16.25105616,129.02,129.0,0.2]
[1765902259741,16.97105616,129.02,129.0,0.2]
[1765902259934,16.25105616,129.02,129.0,0.2]
[1765902261155,16.97105616,129.02,129.0,0.2]
[1765902263753,8.47105616,129.02,129.0,0.2]
[1765902263958,16.25105616,129.02,129.0,0.2]
[1765902265457,16.97105616,129.02,129.0,0.2]
[1765902265958,16.25105616,129.02,129.0,0.2]
[1765902266342,16.25105616,129.02,129.0,7.24774894]
[1765902267259,16.25105616,129.02,129.0,6.63774894]
[1765902267953,16.25105616,129.02,129.0,0.2]
[1765902268159,16.25105616,129.02,129.0,6.63774894]
[1765902268546,0.72,129.1,129.02,0.61]
[1765902268747,0.72,129.09,129.02,0.61]
[1765902268950,8.5,129.09,129.05,6.43774894]
[1765902269159,0.72,129.08,129.05,6.43774894]
[1765902269366,8.5,129.09,129.06,6.43774894]
[1765902270146,8.5,129.09,129.06,7.04774894]
[1765902270861,9.22,129.09,129.06,14.18589939]
[1765902271063,0.72,129.08,129.05,19.48484014]
[1765902271267,16.96667928,129.09,129.05,20.09484014]
[1765902271627,0.72,129.08,129.03,8.35994301]
[1765902271832,0.72,129.08,129.04,6.43774894]
[1765902272138,0.72,129.08,129.05,14.18631085]
[1765902272458,16.96667928,129.09,129.05,14.79631085]
[1765902272975,16.96557196,129.11,129.07,6.43774894]
[1765902273136,16.24557196,129.11,129.07,7.04774894]
[1765902273337,16.24557196,129.11,129.05,7.74856191]
[1765902273338,8.5,129.11,129.09,0.61]
[1765902273571,8.5,129.11,129.09,7.04774894]
[1765902273867,8.5,129.11,129.09,6.43774894]
[1765902274191,8.40453289,129.13,129.09,7.04774894]
[1765902274338,16.90453289,129.13,129.09,7.04774894]
[1765902274736,8.5,129.13,129.1,14.79368232]
[1765902274952,0.69,129.12,129.08,7.04774894]
[1765902275138,0.69,129.12,129.08,6.43774894]
[1765902275967,0.69,129.12,129.08,14.79471534]
[1765902276860,8.43478989,129.12,129.09,6.43774894]
[1765902277056,8.5,129.13,129.09,7.04774894]
[1765902277247,8.5,129.13,129.1,6.43774894]
[1765902277455,9.19,129.13,129.1,6.43774894]
[1765902277651,6.43774894,129.11,129.05,8.80994492]
[1765902277981,8.5,129.1,129.06,6.43774894]
[1765902278273,9.19,129.1,129.06,6.43774894]
[1765902278855,16.93631509,129.1,129.06,14.18606797]
[1765902279058,16.24631509,129.1,129.07,7.04774894]
[1765902279256,8.5,129.1,129.07,7.04774894]
[1765902279964,8.5,129.12,129.09,7.04774894]
[1765902280269,8.5,129.12,129.06,35.92909922]
[1765902280270,0.69,129.11,129.07,0.61]
[1765902280451,8.5,129.12,129.09,7.04774894]
[1765902280653,9.19,129.12,129.09,6.43774894]
[1765902280875,9.19,129.12,129.09,14.18403426]
[1765902281042,8.5,129.12,129.09,14.79403426]
[1765902281247,16.24478688,129.12,129.09,14.18403426]
[1765902281648,16.24478688,129.12,129.09,7.74628532]
[1765902281841,16.24478688,129.12,129.09,14.18403426]
[1765902282588,0.69,129.11,129.08,14.18474709]
[1765902283353,19.35964219,129.14,129.08,14.18474709]
[1765902283354,0.69,129.14,129.1,7.04774894]
[1765902283558,0.69,129.14,129.1,6.43774894]
[1765902284374,7.74413381,129.13,129.1,6.43774894]
[1765902284575,7.74413381,129.13,129.1,14.79361972]
[1765902285070,8.43413381,129.13,129.1,14.18361972]
[1765902285254,0.69,129.14,129.1,14.79361972]
[1765902285458,0.69,129.14,129.1,14.18361972]
[1765902285663,0.69,129.14,129.1,14.79361972]
[1765902286454,8.43359564,129.14,129.1,14.79361972]
[1765902287282,8.43359564,129.14,129.1,8.35587078]
[1765902287486,0.69,129.13,129.1,6.43774894]
[1765902288589,0.69,129.13,129.1,14.18363877]
[1765902288996,0.69,129.13,129.1,14.79363877]
[1765902289478,8.43359564,129.14,129.1,14.79363877]
[1765902289679,0.69,129.13,129.1,14.79363877]
[1765902289885,16.22309874,129.15,129.1,14.18363877]
[1765902290050,16.91309874,129.15,129.11,7.04774894]
[1765902290487,8.43372659,129.14,129.11,6.43774894]
[1765902290696,8.43372659,129.14,129.11,14.18302449]
[1765902290984,0.69,129.14,129.11,14.18302449]
[1765902291186,0.69,129.13,129.09,7.04774894]
[1765902291367,0.69,129.13,129.1,14.18363551]
[1765902291550,9.17,129.15,129.12,6.43774894]
[1765902291755,0.69,129.17,129.13,0.61]
[1765902292064,8.43134538,129.18,129.14,7.04774894]
[1765902292277,0.69,129.18,129.14,0.61]
[1765902292582,0.69,129.19,129.16,14.1800819]
[1765902292780,0.69,129.19,129.16,14.16256701]
[1765902292989,14.90023405,129.21,129.17,7.03023405]
[1765902292990,9.17,129.21,129.17,7.03023405]
[1765902293171,8.48,129.21,129.19,6.42023405]
[1765902293486,7.73906228,129.22,129.19,6.42023405]
[1765902293667,16.90839786,129.23,129.19,6.42023405]
[1765902293992,8.42760526,129.24,129.2,7.03023405]
[1765902294365,8.42760526,129.24,129.19,0.61]
[1765902294578,8.42760526,129.24,129.2,14.16011012]
[1765902294779,0.69,129.23,129.19,7.03023405]
[1765902294980,0.69,129.23,129.19,14.77066671]
[1765902295179,0.69,129.23,129.19,6.42023405]
[1765902295383,0.69,129.23,129.18,7.74112937]
[1765902295384,6.42023405,129.23,129.18,14.16136342]
[1765902295580,0.69,129.22,129.18,14.77136342]
[1765902295792,0.69,129.21,129.17,27.20904373]
[1765902296366,0.69,129.21,129.17,27.81904373]
[1765902296691,16.90894302,129.22,129.18,8.35096437]
[1765902296887,16.90894302,129.22,129.18,14.16119842]
[1765902297293,16.21894302,129.22,129.18,14.77119842]
[1765902297597,16.21894302,129.22,129.17,13.0470912]
[1765902297598,0.69,129.21,129.17,20.78865611]
[1765902297804,8.48,129.22,129.19,7.03023405]
[1765902298100,16.90882378,129.22,129.18,6.42023405]
[1765902298386,16.90882378,129.22,129.18,7.03023405]
[1765902298563,7.73974565,129.21,129.17,14.16179896]
[1765902298760,21.5270912,129.22,129.18,0.61]
[1765902298959,8.42831429,129.23,129.19,7.03023405]
[1765902299164,0.69,129.22,129.18,6.42023405]
[1765902299365,0.69,129.22,129.18,7.03023405]
[1765902299962,0.69,129.21,129.17,6.42023405]
[1765902300161,8.48,129.21,129.17,6.42023405]
[1765902300373,9.17,129.21,129.17,6.42023405]
[1765902300561,7.73993808,129.2,129.17,14.161913]
[1765902300785,15.59023405,129.21,129.17,7.74167895]
[1765902300986,0.69,129.2,129.16,6.42023405]
[1765902301189,0.69,129.2,129.15,45.10985257]
[1765902301190,0.69,129.19,129.15,45.10985257]
[1765902301362,0.69,129.18,129.14,14.16355321]
[1765902301563,0.69,129.16,129.11,19.3625158]
[1765902301791,0.69,129.14,129.1,8.48]
[1765902301988,7.11023405,129.15,129.1,27.82308632]
[1765902302165,0.69,129.15,129.11,8.35485395]
[1765902302366,15.59023405,129.18,129.13,6.42023405]
[1765902302589,9.17,129.18,129.14,7.03023405]
[1765902302887,0.69,129.17,129.13,14.77409111]
[1765902303093,0.69,129.17,129.12,14.16459667]
[1765902303094,0.69,129.16,129.12,14.16459667]
[1765902303274,0.69,129.16,129.13,7.74404111]
[1765902303595,22.64147675,129.18,129.14,14.77370373]
[1765902303769,9.14,129.18,129.14,8.35346968]
[1765902304089,9.14,129.18,129.13,16.22405387]
[1765902304090,0.66,129.16,129.13,16.22405387]
[1765902304267,7.08023405,129.17,129.13,8.35405387]
[1765902304467,7.08023405,129.17,129.13,7.74405387]
[1765902304669,14.82227421,129.17,129.13,8.35405387]
[1765902304902,14.82227421,129.17,129.12,6.42023405]
[1765902304903,0.66,129.16,129.12,7.74446354]
[1765902305084,0.66,129.16,129.12,14.77469759]
[1765902305281,7.14023405,129.15,129.11,7.74512197]
[1765902305485,7.14023405,129.15,129.09,37.26571626]
[1765902305486,0.72,129.13,129.09,15.84017897]
[1765902305698,7.74204016,129.17,129.14,0.61]
[1765902305875,8.46204016,129.17,129.13,14.77423224]
[1765902306075,0.72,129.2,129.14,9.41994492]
[1765902306375,0.72,129.2,129.16,7.03023405]
[1765902306376,7.7401227,129.2,129.16,7.03023405]
[1765902306589,8.4601227,129.2,129.16,7.03023405]
[1765902306785,14.88035675,129.2,129.16,7.74229084]
[1765902306989,0.72,129.19,129.15,14.77288551]
[1765902307176,8.4601227,129.2,129.16,7.74227507]
[1765902307376,14.88035675,129.2,129.16,7.74227507]
[1765902307975,0.72,129.19,129.16,7.74227507]
[1765902308173,14.88035675,129.2,129.16,7.74227507]
[1765902308392,8.4601227,129.2,129.16,7.03023405]
[1765902308599,0.72,129.19,129.16,6.42023405]
[1765902308775,7.7401227,129.2,129.16,6.42023405]
[1765902308971,8.4601227,129.2,129.16,7.03023405]
[1765902309294,8.4601227,129.2,129.16,14.16220504]
[1765902309487,8.4601227,129.2,129.16,14.77220504]
[1765902309889,0.72,129.18,129.15,7.74281204]
[1765902310078,6.42023405,129.19,129.15,7.74281204]
[1765902310283,8.4601227,129.2,129.16,14.77241756]
[1765902310808,7.7401227,129.2,129.16,7.74218351]
[1765902310979,0.72,129.2,129.16,14.77241756]
[1765902311176,0.72,129.18,129.13,13.0470912]
[1765902311485,0.72,129.2,129.16,6.42023405]
[1765902311684,0.72,129.2,129.15,0.61]
[1765902311685,0.72,129.19,129.15,7.03023405]
[1765902311886,0.72,129.18,129.14,14.16352623]
[1765902312302,6.42023405,129.2,129.14,14.16352623]
[1765902312506,16.93956779,129.21,129.17,7.03023405]
[1765902312690,16.21956779,129.21,129.18,0.61]
[1765902313009,8.48,129.21,129.18,0.61]
[1765902313180,8.45835623,129.23,129.19,0.61]
[1765902313379,8.45835623,129.23,129.19,8.34997588]
[1765902313683,14.90023405,129.24,129.2,7.03023405]
[1765902313684,16.93779774,129.24,129.2,7.03023405]
[1765902313882,8.48,129.24,129.21,7.03023405]
[1765902314278,0.1,129.25,129.22,7.03023405]